Cogmind - Beta 10.1 @@@ ROGUE MODE // 2020.10.05 @ 19:04:38 Player: BOTHUNTER Result: Destroyed by Y-45 Defender with Beam Rifle Performance ------------- Evolutions (1) 500 Regions Visited (3) 600 Robots Destroyed (10) 50 Value Destroyed (176) 176 Prototype IDs (0) 0 Alien Tech Used (0) 0 Bonus (0) 0 TOTAL SCORE: 1326 Bonus ------- None Cogmind --------- Core Integrity 0/400 Matter 295/300 Energy 99/100 System Corruption 0% Temperature Cool (9) Movement Flying (40) Location -9/Materials Parts ------- > --- POWER (1) -------- (None) > --- PROPULSION (2) --- Flight Unit > --- UTILITY (4) ------ Targeting Computer > --- WEAPON (2) ------- (None) > --- INVENTORY (4) ---- Ion Engine Small Storage Unit Hacking Suite Peak State ------------ > --- POWER ------------ (None) > --- PROPULSION ------- Flight Unit > --- UTILITY ---------- Targeting Computer > --- WEAPON ----------- Assault Rifle Mace > --- INVENTORY -------- Ion Engine Small Storage Unit Hacking Suite [Rating: 5] Favorites ----------- Power None Propulsion Flight Unit Flight Unit Flight Unit Utility Targeting Computer Processor Targeting Computer Weapon Assault Rifle Energy Gun Small Laser Ballistic Gun Assault Rifle Impact Weapon Mace Build | -11 -10 -10 -9 ------- Run | Scr Mat Min Mat Slots Evolved 2 | . . . 2 Power . | . . . . Propulsion . | . . . . Utility 2 | . . . 2 Weapon . | . . . . Parts Attached 6 | 1 3 . 2 Power . | . . . . Engine . | . . . . Core . | . . . . Reactor . | . . . . Propulsion 2 | . 1 . 1 Treads . | . . . . Leg . | . . . . Wheel . | . . . . Hover . | . . . . Flight 2 | . 1 . 1 Utility 1 | . 1 . . Device . | . . . . Storage . | . . . . Processor 1 | . 1 . . Hackware . | . . . . Protection . | . . . . Artifact . | . . . . Weapon 3 | 1 1 . 1 Energy Gun 1 | 1 . . . Energy Cannon . | . . . . Ballistic Gun 1 | . 1 . . Ballistic Cannon . | . . . . Launcher . | . . . . Special Weapon . | . . . . Impact Weapon 1 | . . . 1 Slashing Weapon . | . . . . Piercing Weapon . | . . . . Special Melee Weapon . | . . . . Unidentified Prototypes . | . . . . Parts Lost 4 | . . 1 3 Power . | . . . . Propulsion 1 | . . . 1 Utility . | . . . . Weapon 3 | . . 1 2 Highest Loss Streak 2 | . . 1 2 Average Slot Usage (%) 38 | . 41 52 31 Flight 10 | . 12 14 7 Processor 6 | . 2 14 11 Energy Gun 8 | . 14 9 . Ballistic Gun 10 | . 12 14 5 Impact Weapon 2 | . . . 7 Naked Turns . | . . . . Heaviest Build 4 | 1 3 3 4 Greatest Support 4 | 3 4 4 4 Greatest Overweight (x) 1 | . . . 1 Average Overweight (x) . | . . . . Largest Inventory Capacity 4 | 4 4 4 4 Average Capacity 4 | 4 4 4 4 Most Carried 3 | 2 3 3 3 Average Carried 2 | 1 2 3 3 Final Capacity 4 | 4 4 4 4 Final Carried 3 | 2 3 3 3 Class Distribution -------------------- 100% | Mutant Dominant Class ---------------- Mutant | -10/Materials Mutant | -10/Mines Mutant | -9/Materials Resources | -11 -10 -10 -9 ----------- Run | Scr Mat Min Mat Matter Collected 313 | 210 43 31 29 Remotely . | . . . . Salvage Created 268 | . 49 31 188 Parts 23 | . 7 1 15 Haulers Intercepted . | . . . . Recyclers Shooed . | . . . . Parts Field Recycled . | . . . . Retrieved Matter . | . . . . Parts Self-Destructed . | . . . . Prevented . | . . . . Kills | -11 -10 -10 -9 ------- Run | Scr Mat Min Mat Combat Hostiles Destroyed 6 | . 1 2 3 Guns 3 | . 1 2 . AOE 3 | . . . 3 Classes Destroyed 4 | . 2 1 1 Worker 2 | . . . 2 Operator 2 | . 1 . 1 Swarmer 3 | . . 2 1 Grunt 3 | . 1 . 2 Best Kill Streak 5 | . 1 1 5 Combat Bots Only 3 | . 1 1 3 Max Kills in Single Turn 5 | . 1 1 5 Gunslinging . | . . . . Exploded 3 | . . . 3 Melee . | . . . . Uniques/NPCs Destroyed . | . . . . Combat | -11 -10 -10 -9 -------- Run | Scr Mat Min Mat Damage Taken 757 | . 78 123 556 Core 504 | . 12 81 411 Absorbed by Shields . | . . . . Core Remaining (%) 81 | 100 . 62 . Volleys Fired 34 | . 21 13 . Largest 2 | . 2 2 . Hottest 60 | . 60 60 . Shots Fired 54 | . 34 20 . Gun 54 | . 34 20 . Cannon . | . . . . Launcher . | . . . . Special . | . . . . Kinetic 26 | . 13 13 . Thermal 28 | . 21 7 . Explosive . | . . . . Electromagnetic . | . . . . Robot Hit Streak 5 | . 3 5 . Robot Miss Streak 7 | . 6 7 . Penetration Max . | . . . . Secondary Targets . | . . . . Shots Hit Robots 23 | . 10 11 2 Core Hits 20 | . 6 2 12 Critical Hits . | . . . . Critical Kills . | . . . . Critical Parts Destroyed . | . . . . Melee Attacks 13 | . . . 13 Impact 13 | . . . 13 Slashing . | . . . . Piercing . | . . . . Sneak Attacks 1 | . . . 1 Combat Hostiles . | . . . . Follow-up Attacks . | . . . . Damage Inflicted 556 | . 125 108 323 Guns 231 | . 123 108 . Cannons . | . . . . Explosions 217 | . . . 217 Melee 106 | . . . 106 Ramming 2 | . 2 . . Kinetic 122 | . 58 64 . Thermal 109 | . 65 44 . Explosive . | . . . . Electromagnetic 217 | . . . 217 Impact 106 | . . . 106 Slashing . | . . . . Piercing . | . . . . Highest Corruption . | . . . . Average Corruption . | . . . . Corruption Purged . | . . . . Overload Shots . | . . . . Overflow Damage . | . . . . Projectiles . | . . . . Explosions . | . . . . Melee . | . . . . Knockbacks . | . . . . Impact . | . . . . Kinetic . | . . . . Secondary . | . . . . Self-Inflicted Damage 44 | . 1 . 43 Shots 1 | . . . 1 Rammed 1 | . 1 . . Targets Rammed 1 | . 1 . . Kicked . | . . . . Crushed . | . . . . Highest Temperature 15 | . 15 . . Average Temperature 7 | . 7 . . Received Heat Transfer 150 | . 42 . 108 Siege Activations . | . . . . Robots Corrupted . | . . . . Combat Hostiles . | . . . . Parts Fried 1 | . . . 1 Impact Corruptions . | . . . . Robots Melted . | . . . . Combat Hostiles . | . . . . Parts Melted 1 | . . 1 . Heat Transferred 250 | . 150 100 . Parts Sabotaged . | . . . . Parts Stolen . | . . . . Parts Stripped . | . . . . Power Chain Reactions . | . . . . Missiles Intercepted . | . . . . Alert | -11 -10 -10 -9 ------- Run | Scr Mat Min Mat Peak Influence 229 | . 91 65 229 Initial 35 | . . 35 25 Average 82 | . 72 48 118 Maximum Alert Level 1 | . . . 1 Low Security (%) 91 | 100 100 100 75 Level 1 8 | . . . 24 Level 2 . | . . . . Level 3 . | . . . . Level 4 . | . . . . Level 5 . | . . . . High Security . | . . . . Max Security . | . . . . Squads Dispatched 7 | . 4 . 3 Investigation 1 | . . . 1 Extermination . | . . . . Reinforcement 6 | . 4 . 2 Assault . | . . . . Garrison . | . . . . Intercept . | . . . . Construction Impeded . | . . . . Haulers Reinforced . | . . . . Stealth | -11 -10 -10 -9 --------- Run | Scr Mat Min Mat Distress Signals 1 | . . . 1 Communications Jammed . | . . . . Distress Signals . | . . . . Times Spotted 45 | . 9 3 33 Peak Tracking Total 13 | . 6 3 13 Tactical Retreats 7 | . 1 1 5 Traps | -11 -10 -10 -9 ------- Run | Scr Mat Min Mat Traps Triggered . | . . . . Indirectly . | . . . . Trap Hack Attempts . | . . . . Triggered . | . . . . Disarmed . | . . . . Reprogrammed . | . . . . Reused . | . . . . Traps Extracted . | . . . . Installed . | . . . . Triggered . | . . . . Machines | -11 -10 -10 -9 ---------- Run | Scr Mat Min Mat Machines Disabled 1 | . . . 1 Max in Single Turn 1 | . . . 1 Machines Sabotaged . | . . . . Garrisons Compromised . | . . . . Overloaded Fab Kills . | . . . . Fab Network Shutdowns . | . . . . Hacking | -11 -10 -10 -9 --------- Run | Scr Mat Min Mat Machines Accessed 5 | . 1 . 4 Terminals 4 | . 1 . 3 Fabricators . | . . . . Repair Stations . | . . . . Recycling Units . | . . . . Scanalyzers 1 | . . . 1 Garrison Access . | . . . . Total Hacks 12 | . 4 . 8 Successful 8 | . 2 . 6 Failed 4 | . 2 . 2 Catastrophic . | . . . . Database Lockouts . | . . . . Manual 10 | . 4 . 6 Terminals 9 | . 4 . 5 Fabricators . | . . . . Repair Stations . | . . . . Recycling Units . | . . . . Scanalyzers 3 | . . . 3 Garrison Access . | . . . . Terminal Hacks 4 | . 1 . 3 Robot Analysis 3 | . . . 3 Terminal Index 1 | . 1 . . Fabricator Hacks . | . . . . Repair Station Hacks . | . . . . Recycling Unit Hacks . | . . . . Scanalyzer 2 | . . . 2 Insert Component 1 | . . . 1 Analyze 1 | . . . 1 Garrison Access Hacks . | . . . . Unauthorized Hacks 2 | . 1 . 1 Terminals 2 | . 1 . 1 Botnet 2 | . 1 . 1 Fabricators . | . . . . Repair Stations . | . . . . Recycling Units . | . . . . Scanalyzers . | . . . . Garrison Access . | . . . . Data Cores Recovered . | . . . . Used . | . . . . Hacking Detections 3 | . 1 . 2 Full Trace Events 3 | . 1 . 2 Feedback Events . | . . . . Feedback Blocked . | . . . . Robot Schematics Acquired . | . . . . Robots Built . | . . . . Matter . | . . . . Time . | . . . . Total Robot Build Rating . | . . . . Part Schematics Acquired 1 | . . . 1 Parts Built . | . . . . Matter . | . . . . Time . | . . . . Total Part Build Rating . | . . . . Parts Repaired . | . . . . Time . | . . . . Parts Recycled . | . . . . Recycled Matter . | . . . . Retrieved Matter . | . . . . Retrieved Components . | . . . . Parts Scanalyzed 1 | . . . 1 Part Schematics Acquired 1 | . . . 1 Parts Damaged . | . . . . Bothacking | -11 -10 -10 -9 ------------ Run | Scr Mat Min Mat Used RIF Installer . | . . . . Robots Hacked . | . . . . Non-combat . | . . . . Combat . | . . . . Robot Hacks Applied . | . . . . Relay Couplers Released . | . . . . Robots Rewired . | . . . . Allies Hacked . | . . . . Hacks Repelled . | . . . . Allies | -11 -10 -10 -9 -------- Run | Scr Mat Min Mat Total Allies . | . . . . Largest Group . | . . . . Highest-Rated Group . | . . . . Highest-Rated Ally . | . . . . Total Orders . | . . . . Ally Attacks . | . . . . Total Damage . | . . . . Kills . | . . . . Allies Corrupted . | . . . . Allies Melted . | . . . . Intel | -11 -10 -10 -9 ------- Run | Scr Mat Min Mat Robot Analysis Total 3 | . . . 3 Derelict Logs Recovered . | . . . . Drone Launches . | . . . . Drone Recoveries . | . . . . Exploration | -11 -10 -10 -9 ------------- Run | Scr Mat Min Mat Turns Passed 658 | 26 354 61 217 Spaces Moved 767 | 45 257 66 399 Core 198 | 45 49 . 104 Treads . | . . . . Legs . | . . . . Wheels . | . . . . Hover . | . . . . Flight 569 | . 208 66 295 Fastest Speed 40 | 50 40 40 40 Average Speed 42 | 50 41 40 42 Slowest Speed 100 | 50 50 40 100 Overloaded Moves . | . . . . Propulsion Burnouts . | . . . . Robots Hopped 16 | . 7 2 7 Cave-ins Triggered . | . . . . Exploration Rate (%) 30 | 4 47 22 47 Regions Visited 3 Branch Regions 1 Pre-discovered Areas . | . . . . Known Exits Taken . | . . . . Unknown Exits Taken 3 | 1 1 1 . Scrap Searched . | . . . . Spaces Dug 5 | . . . 5 Terrain Destroyed 5 | . . . 5 Melee 5 | . . . 5 Projectile . | . . . . AOE . | . . . . Terrain Rammed . | . . . . Walls Destroyed . | . . . . Machines Disabled . | . . . . Actions | -11 -10 -10 -9 --------- Run | Scr Mat Min Mat Total 1001 | 47 460 77 417 Wait 196 | . 185 1 10 Move 736 | 44 243 62 387 Hop 12 | . 6 1 5 Pick Up 3 | 2 1 . . Fast Attach 6 | 1 3 . 2 Attach . | . . . . Detach . | . . . . Swap . | . . . . Drop . | . . . . Fire 34 | . 21 13 . Melee 13 | . . . 13 Ram 1 | . 1 . . Kick . | . . . . Crush . | . . . . Escape Stasis . | . . . . Rewire . | . . . . Trap . | . . . . Miscellaneous . | . . . . Route ------- -11/Scrapyard -10/Materials -10/Mines -9/Materials (discovered 1 exit: [*Mat]) History --------- Turn | Location | Event 6 | -11/Scrapyard | Discovered new exit (range 15) 27 | -11/Scrapyard | Entered Materials 301 | -10/Materials | Build established: Mutant 369 | -10/Materials | Discovered new exit (range 9) 381 | -10/Materials | Entered Mines 387 | -10/Mines | Met a Derelict bent on vengeance 437 | -10/Mines | Discovered new exit (range 8) 442 | -10/Mines | Entered Materials 442 | -9/Materials | Evolved 2 slots: Utility x2 591 | -9/Materials | Core integrity fell below 50% 612 | -9/Materials | Core integrity fell below 20% 625 | -9/Materials | Discovered new exit (range 16) 659 | -9/Materials | Destroyed by Y-45 Defender with Beam Rifle Last Messages --------------- 00609_ Acquired Flight Unit. 00611_ Mace destroyed. 00612_ R-06 Scavenger collects Aluminum Leg. 00612_ T-07 Excavator is excavating. 00625_ EXIT=FOUND 00625_ Connecting with Terminal... >>Analysis(A-02 Transporter) Downloading analysis... A-02 Transporter Tier: 1 A-series haulers transport matter and parts vital to construction and manufacturing. To minimize losses during derelict incursions, like most other maintenance robots they are of relatively sturdy construction, but remain somewhat susceptible to electromagnetic damage as such weaponry is not prevalent enough to warrant specialized defenses. 00640_ U-05 Engineer lays Concrete. 00643_ Connecting with Terminal... 00643_ ALERT: Suspicious activity at Terminal M001. Dispatching Investigation squad. 00647_ O-16 Technician: "IFF HANDSHAKE FAILED. SECURING TERMINAL." Map ----- +----------------------------------------------------+ | ??????????????????????????????####"#/###?# | | ??????????????????????????????# =%#?########### | | ??????????????????????????????# *%=*# #?????? | | ??????????????????????????????# !=%# #?????? | | ??????????????????????????????# =/ ???????? | | ??????????????????????????????# %[ # ???????? | | ??????????????????????????????# %*# ?????????? | | ????????????????????????##????####"###? ????????? | | ????????????????????????# ####### ##?? ???????? | | ????????????????????????# +?? ???????? | | ????????????????????????# # ##### ## ?? ??????? | | ??????????????????????????# #???#####?? ?? #?????? | | ??????????????????????????# #??????????? ??#?????? | | ????????????????????????### ###?????????? ???????? | | ????????????????????????# ##########+?#??????? | | ??????????????# ######## ??????? | | ??????????????# ??????? | | ??????????????# ??????? | | ??????????????########### g ###+########???????? | | ????????????????????????#g#####??????????????????? | | ????????????????????????# #??????????????????????? | | ????????????????????????#Y#??????????????????????? | | ?????????????????????#### ##?????????????????????? | | ?????????????????????# Y #?????????????????????? | | ?????????????????????# #?????????????????????? | | ?????????????????????# u@ #?????????????????????? | | ??????###????????????# #?????????????????????? | | ?????## ???????????# Y #?????????????????????? | | ?????? ??????????## ##?????????????????????? | | ??????# """ #?????# #####??????????????????? | | ??????# """"" #?????# # #?????????? ??????? | | ??????# """"" #?????# a #????????? ??????? | | ??????# """"" #?????# g# #???????? ?????? | | ??????? """ ??????# #####??????? ?????? | | ????????? ???????## l############ ^ ????? | | ???????####+########## ????? | | ???????# ????? | | ???????# < T ???? | | ???????# ???? | | ??????#####+########## ???? | | ??????# #????# """ """ ""??????? | | ??????# #????# """"" """"" ""???????? | | ??????# """ """ #????#!% """"" """""??????????## | | ??????# """ """ #????#] """"" """""????????? | | ??????# """ """ #????# """ """ ????????? | | ??????# #????# ????????? | | ??????# #????# ????????? | | ??????? #????######## ????????? | | ??????##########????????????# #######?????????## | | ????????????????????????????# #????????????????? | +----------------------------------------------------+ Best States ------------- Heat Dissipation 28 Energy Generation 5 Energy Capacity 100 Matter Stores 300 Matter Capacity 300 Sight Range 16 Terrain Scan Density 10 Evasion (%) 62 Targeting Accuracy 5 Item Schematics ----------------- Hacking Suite | -9/Materials | Scanalyzed Robot Schematics ------------------ None Fabricated ------------ Nothing Alien Tech Used ----------------- None Achievements -------------- None Challenges ------------ None Game ------ Seed BattleStorageHammer Manual? 0 Play Time 00:17:17 Cumulative 104.0 hours Start 2020.10.05 @ 15:03:03 End 2020.10.05 @ 19:04:38 Sessions 1 Manual Loads 0 Difficulty Rogue Special Mode None Game No. 158 Rogue 134 Adventurer 22 Explorer 2 Win Type - Total 1 Types 1/0/0/0/0/0/0/0/0 Lore% 48 Gallery% 52 Achievement% 43 Wizard Run 0 Options --------- ASCII 0 Keyboard 0 Movement Numpad Keybinds 0 Fullscreen 1 Font 14/SmallcapsGlow Map View 84x54 Tactical HUD 1 Map Filters NONE Filters NONE Steam 1 RUN: 8f7059b8-e8c8-478e-88b3-db63be836354